bitfinex-derivatives/quotes_ETHF0:USTF0_20250217
["timestamp","ask_amount","ask_price","bid_price","bid_amount"]
[1739790510610,0.7257,2755.8,2755.6,0.0054408]
[1739790510813,0.5631,2755.9,2755.6,0.0054408]
[1739790511214,3.89461552,2755.8,2754.8,3.2078]
[1739790511414,0.72585,2755.3,2754.8,3.2078]
[1739790511610,0.72585,2755.3,2754.9,7.52617137]
[1739790511831,1.28367,2755.2,2754.8,3.2078]
[1739790512016,0.5578,2755.2,2754.8,3.2078]
[1739790512624,0.72589,2755.1,2754.8,3.2078]
[1739790512815,0.72592,2755.0,2754.7,0.0054408]
[1739790513020,3.32992,2755.0,2754.7,0.0054408]
[1739790513217,2.604,2755.0,2754.7,0.0054408]
[1739790513419,3.32993,2755.0,2754.7,0.0054408]
[1739790513617,2.604,2755.0,2754.7,0.0054408]
[1739790514224,0.72597,2754.8,2754.7,0.0054408]
[1739790515218,2.604,2755.0,2754.7,0.0054408]
[1739790515219,5.8118,2755.0,2754.7,0.0054408]
[1739790515423,0.72595,2754.9,2754.7,0.0054408]
[1739790515720,3.32993,2755.0,2754.7,0.0054408]
[1739790515928,0.72595,2754.9,2754.7,0.0054408]
[1739790516119,2.604,2755.0,2754.7,0.0054408]
[1739790516319,3.32993,2755.0,2754.7,0.0054408]
[1739790516819,0.72597,2754.8,2754.7,0.0054408]
[1739790517813,2.604,2755.0,2754.7,0.0054408]
[1739790518012,0.72594,2754.9,2754.7,0.0054408]
[1739790518421,2.604,2754.8,2754.7,0.0054408]
[1739790519823,3.32997,2754.8,2754.7,0.0054408]
[1739790521932,6.53777,2754.8,2754.7,0.0054408]
[1739790522925,0.72617,2754.1,2753.9,3.2078]
[1739790523130,2.604,2754.2,2753.9,3.2078]
[1739790523329,3.33014,2754.2,2753.9,3.2078]
[1739790523634,2.604,2754.2,2753.9,3.2078]
[1739790523830,2.604,2754.2,2753.9,3.93399]
[1739790524231,2.604,2754.2,2753.9,3.2078]
[1739790524430,0.72617,2754.1,2753.9,3.2078]
[1739790524630,3.33013,2754.2,2753.9,3.934]
[1739790525535,0.72607,2754.4,2753.9,3.2078]
[1739790525833,2.605,2754.2,2754.0,0.72617]
[1739790526126,2.605,2754.2,2753.9,3.2078]
[1739790526328,0.5665,2754.7,2754.2,0.72612]
[1739790526329,2.605,2754.3,2754.2,0.72612]
[1739790526722,2.605,2754.3,2754.1,0.72614]
[1739790527630,0.72618,2754.0,2753.9,3.2078]
[1739790528230,3.2078,2754.1,2753.8,0.0054408]
[1739790528533,0.7262,2753.9,2753.8,0.0054408]
[1739790528736,3.3312,2753.9,2753.8,0.0054408]
[1739790530037,3.3312,2753.9,2752.4,3.2078]
[1739790530038,12.49961552,2753.9,2752.4,3.2078]
[1739790530340,3.89461552,2753.0,2752.4,3.2078]
[1739790530533,2.605,2752.9,2752.4,3.2078]
[1739790530736,2.605,2752.8,2752.5,0.72656]
[1739790531034,2.605,2752.8,2752.4,3.2132408]
[1739790531428,0.0054408,2752.9,2752.6,0.72654]
[1739790531634,0.0054408,2752.9,2752.8,3.93429]
[1739790532041,0.0054408,2752.9,2752.8,11.57865771]
[1739790532235,2.605,2753.8,2753.3,0.72634]
[1739790532440,2.605,2753.8,2753.4,1.26213]
[1739790532739,3.33125,2753.8,2753.4,0.5358]
[1739790532935,2.605,2753.8,2753.4,0.5358]
[1739790533141,3.7708,2754.0,2753.4,0.5358]
[1739790533438,3.2078,2753.6,2752.9,3.2078]
[1739790533739,2.605,2753.5,2752.9,3.2078]
[1739790533942,3.2078,2753.6,2753.1,0.7264]
[1739790534136,2.605,2753.6,2753.2,0.5539]
[1739790534335,2.605,2753.6,2753.2,3.7617]
[1739790534535,3.33129,2753.6,2753.2,3.7617]
[1739790534733,2.605,2753.6,2753.2,3.7617]
[1739790534932,5.8128,2753.6,2752.8,1.204]
[1739790535336,3.2078,2753.3,2752.8,1.204]
[1739790535541,0.72647,2752.9,2752.8,1.204]
[1739790535732,3.7253,2753.2,2752.6,1.28045]
[1739790535933,3.7253,2753.2,2752.7,0.72652]
[1739790536344,3.89461552,2753.1,2752.5,3.2078]
[1739790536550,0.72657,2752.5,2752.4,0.0054408]
[1739790536840,3.2078,2753.0,2752.4,0.0054408]
[1739790536841,2.605,2752.7,2752.4,0.0054408]
[1739790537239,0.72657,2752.5,2752.4,0.0054408]
[1739790538846,4.62118552,2752.5,2752.4,0.0054408]
[1739790540243,0.5416,2752.6,2752.4,0.0054408]
[1739790540445,2.606,2752.5,2752.4,0.0054408]
[1739790541246,3.33257,2752.5,2752.4,0.0054408]
[1739790541951,2.606,2752.5,2752.4,0.0054408]
[1739790542746,2.606,2752.6,2752.4,0.0054408]
[1739790544353,7.64441552,2753.1,2752.4,0.0054408]
[1739790544549,2.606,2753.0,2752.6,0.72653]
[1739790544745,2.606,2753.0,2752.7,0.5676]
[1739790545047,2.606,2753.0,2752.4,0.0054408]
[1739790545251,0.72652,2752.7,2752.4,0.0054408]
[1739790545446,2.606,2753.0,2752.4,0.0054408]
[1739790545651,3.2078,2753.1,2752.4,0.0054408]
[1739790545852,0.5691,2753.5,2752.9,0.72647]
[1739790546051,0.72645,2753.0,2752.5,10.88396676]
[1739790546248,3.89461552,2753.3,2752.5,10.88396676]
[1739790546440,3.89461552,2753.3,2752.5,3.2078]
[1739790546750,0.72648,2752.9,2752.5,3.93436]
[1739790547148,2.606,2753.0,2752.5,3.93436]
[1739790547343,0.72647,2752.9,2752.6,0.72654]
[1739790547542,2.606,2753.0,2752.5,3.2078]
[1739790547750,0.5691,2753.5,2752.5,3.2078]
[1739790548048,3.89461552,2753.6,2752.5,3.2078]
[1739790548049,2.606,2753.4,2753.3,0.72636]
[1739790548345,2.606,2753.5,2753.4,0.72633]
[1739790548548,2.606,2753.7,2753.4,0.72631]
[1739790548749,2.606,2753.7,2753.2,0.5812]
[1739790548947,2.606,2753.8,2753.5,7.43335205]
[1739790549141,0.0054408,2753.9,2753.6,0.5686]
[1739790549347,0.0054408,2753.9,2753.8,3.93403]
[1739790549753,0.0054408,2753.9,2753.8,11.52566719]
[1739790551749,3.89461552,2755.3,2753.9,1.81552]
[1739790551955,0.72593,2755.0,2754.5,0.72604]
[1739790552254,2.606,2755.0,2754.6,0.72602]
[1739790552452,2.606,2755.1,2754.8,0.72595]
[1739790552649,3.7603,2755.4,2754.7,3.2078]
[1739790552650,7.09212,2755.4,2754.7,3.2078]
[1739790552853,0.0054408,2755.2,2754.7,3.9392208]
[1739790553048,0.0054408,2755.2,2754.8,8.22321771]
[1739790553352,0.0054408,2755.2,2754.8,8.22319771]
[1739790553549,0.7313108,2755.2,2754.7,3.2132408]
[1739790553752,0.0054408,2755.2,2754.7,3.2132408]
[1739790554349,0.7313208,2755.2,2754.7,3.2132408]
[1739790554547,0.0054408,2755.2,2754.7,3.2132408]
[1739790554743,0.0054408,2755.2,2754.7,0.0054408]
[1739790554956,0.7259,2755.1,2754.7,0.0054408]
[1739790555149,2.605,2755.0,2754.7,0.0054408]
[1739790555548,3.33092,2755.0,2754.7,0.0054408]
[1739790556155,2.605,2755.0,2754.7,0.0054408]
[1739790556459,0.72597,2754.8,2754.7,0.0054408]
[1739790557155,3.33093,2755.0,2754.7,0.0054408]
[1739790557345,41.52594,2754.9,2754.7,0.0054408]
[1739790557950,40.8,2754.9,2754.7,0.0054408]
[1739790558157,2.605,2755.0,2754.7,0.0054408]
[1739790558357,0.72595,2754.9,2754.7,0.0054408]
[1739790558553,2.605,2755.0,2754.7,0.0054408]
[1739790558857,5.16948552,2754.8,2754.7,0.0054408]
[1739790559252,13.65131552,2754.8,2753.7,3.2078]
[1739790559457,0.72611,2754.3,2753.7,3.93405]
[1739790559653,3.33108,2754.4,2753.9,0.7262]
[1739790559849,2.605,2754.4,2753.7,10.64911699]
[1739790560050,2.605,2754.4,2754.1,0.72614]
[1739790560561,2.605,2754.4,2754.0,3.2132408]
[1739790560854,2.605,2754.4,2754.1,0.72613]
[1739790561259,2.605,2754.6,2754.0,3.2132408]
[1739790561445,2.605,2754.6,2754.4,0.72607]
[1739790561648,6.3617,2754.8,2754.5,0.72603]
[1739790561957,6.3617,2754.8,2754.3,3.2078]
[1739790562147,6.3617,2754.8,2754.3,3.7449]
[1739790562353,6.3617,2754.8,2754.3,3.2078]
[1739790562549,0.72607,2754.4,2754.0,3.2132408]
[1739790562856,2.605,2754.4,2754.0,3.2132408]
[1739790563149,2.605,2754.4,2754.0,0.0054408]
[1739790563150,0.72615,2754.1,2754.0,0.0054408]
[1739790563550,1.26645,2754.1,2754.0,0.0054408]
[1739790564060,4.47425,2754.1,2754.0,0.0054408]
[1739790564259,0.72634,2753.4,2752.9,4.3354]
[1739790564465,2.605,2753.6,2752.9,4.3354]
[1739790564757,2.605,2753.6,2752.9,11.96563939]
[1739790564957,2.605,2753.6,2753.1,0.7264]
[1739790565256,3.33129,2753.6,2753.1,0.7264]
[1739790565557,2.6104408,2753.6,2753.5,0.72631]
[1739790565748,2.6104408,2753.6,2753.2,10.98032489]
[1739790565953,2.6104408,2753.6,2753.4,0.72632]
[1739790566452,2.6104408,2753.6,2753.2,10.98032489]
[1739790566654,2.6104408,2753.6,2753.4,0.72632]
[1739790567253,2.6104408,2753.6,2753.2,10.98032489]
[1739790567455,0.0054408,2753.6,2753.2,10.98032489]
[1739790567647,0.0054408,2753.6,2753.1,0.0054408]
[1739790567854,0.72635,2753.4,2753.1,0.0054408]
[1739790568048,2.605,2753.4,2753.1,0.0054408]
[1739790568253,0.72636,2753.3,2753.1,0.0054408]
[1739790568859,0.72637,2753.3,2753.1,0.0054408]
[1739790569159,3.33135,2753.4,2753.1,0.0054408]
[1739790569363,2.605,2753.4,2753.1,0.0054408]
[1739790569555,0.72639,2753.2,2753.1,0.0054408]
[1739790570159,0.72639,2753.2,2752.4,3.7433]
[1739790570160,3.2078,2753.2,2752.4,3.7433]
[1739790570359,0.72654,2752.7,2752.4,3.2078]
[1739790570562,2.605,2752.8,2752.4,3.2078]
[1739790570748,2.605,2752.9,2752.6,0.72653]
[1739790571355,2.605,2752.9,2752.7,3.2078]
[1739790571556,0.5749,2753.3,2752.9,0.72646]
[1739790571760,2.605,2753.2,2752.9,0.72646]
[1739790571956,2.605,2753.2,2752.8,0.72648]
[1739790572157,2.605,2753.2,2752.9,0.72646]
[1739790572359,2.605,2753.2,2752.8,7.41076469]
[1739790572659,2.605,2753.2,2753.1,0.72641]
[1739790572851,2.605,2753.2,2753.0,0.72642]
[1739790573254,2.605,2753.2,2752.8,7.41076469]
[1739790573460,2.605,2753.2,2753.1,0.72641]
[1739790574261,0.72635,2753.4,2753.0,3.2078]
[1739790574458,0.72635,2753.4,2753.1,0.7264]
[1739790574661,3.1695,2753.5,2753.0,3.2078]
[1739790574860,0.72641,2753.2,2753.0,3.2078]
[1739790575267,3.1695,2753.5,2753.0,3.2078]
[1739790575563,0.72636,2753.4,2753.0,3.2078]
[1739790575867,0.72636,2753.4,2753.0,3.93422]
[1739790576056,0.72636,2753.3,2753.0,3.93422]
[1739790576263,3.1695,2753.5,2753.0,3.2078]
[1739790576665,0.72637,2753.3,2753.0,3.2078]
[1739790576968,3.1695,2753.5,2753.0,3.2078]
[1739790577263,0.7264,2753.2,2753.0,3.2078]
[1739790577962,0.72649,2752.8,2752.7,3.2078]
[1739790578168,0.72649,2752.8,2752.5,0.00366077]
[1739790578762,0.72655,2752.6,2752.5,0.00366077]
[1739790579470,3.33155,2752.6,2752.5,0.00366077]
[1739790581163,3.33155,2752.6,2751.9,3.7745]
[1739790581164,0.72664,2752.3,2751.9,4.50121]
[1739790581363,0.72664,2752.3,2751.9,3.7745]
[1739790581572,0.72664,2752.3,2751.9,4.50121]
[1739790582668,3.1298,2752.6,2751.9,3.7745]
[1739790582964,0.72668,2752.1,2751.9,3.2078]
[1739790583163,2.606,2752.2,2751.9,3.2078]
[1739790583867,2.606,2752.2,2751.9,3.93452]
[1739790584070,2.606,2752.2,2752.0,0.7267]
[1739790584464,2.606,2752.2,2752.0,0.72669]
[1739790584965,3.33267,2752.2,2751.9,3.2078]
[1739790585166,3.33267,2752.2,2751.9,3.93453]
[1739790585671,0.72669,2752.1,2751.9,3.2078]
[1739790586370,0.7267,2752.0,2751.9,3.2078]
[1739790586673,0.72681,2751.7,2751.5,0.5734]
[1739790587466,0.72681,2751.6,2751.5,0.5734]
[1739790587961,2.606,2751.8,2751.4,3.2078]
[1739790588165,0.5687,2751.7,2751.1,3.2078]
[1739790588472,0.72688,2751.4,2751.1,3.2078]
[1739790588665,0.72689,2751.3,2751.1,3.2078]
[1739790588862,2.606,2751.4,2751.2,0.7269]
[1739790589067,2.606,2751.4,2751.1,3.93472]
[1739790589262,2.606,2751.4,2751.2,0.72691]
[1739790589975,2.606,2751.4,2751.1,3.2078]
[1739790590382,2.606,2751.4,2751.2,0.72691]
[1739790591274,2.606,2751.4,2751.1,3.2078]
[1739790591477,2.606,2751.4,2751.2,0.72691]
[1739790591676,2.606,2751.4,2751.1,3.2078]
[1739790591878,2.606,2751.4,2751.3,0.72687]
[1739790592174,2.606,2751.4,2751.1,3.2078]
[1739790592370,3.33287,2751.4,2751.2,0.72691]
[1739790592879,2.606,2751.4,2751.2,0.72691]
[1739790593185,3.33287,2751.4,2751.2,0.72691]
[1739790593370,0.5687,2751.7,2751.1,3.2078]
[1739790593674,3.1777,2751.8,2751.4,3.2078]
[1739790593880,0.7268,2751.7,2751.4,3.93466]
[1739790594072,3.1777,2751.8,2751.4,3.2078]
[1739790594269,0.7268,2751.7,2751.4,3.93465]
[1739790594479,2.606,2751.8,2751.6,0.7268]
[1739790595678,2.606,2751.8,2751.4,3.2078]
[1739790595879,0.7268,2751.7,2751.4,3.2078]
[1739790596179,2.606,2751.8,2751.6,0.7268]
[1739790596480,7.10241552,2751.7,2750.7,3.2078]
[1739790596777,3.89461552,2751.1,2750.4,3.2078]
[1739790597076,3.89461552,2750.8,2750.2,1.1135]
[1739790597275,3.89461552,2750.8,2749.2,0.555]
[1739790597276,0.72722,2750.1,2749.8,3.2078]
[1739790597479,2.606,2750.1,2749.8,3.2078]
[1739790597673,2.606,2750.1,2749.4,0.5439]
[1739790597674,0.72726,2749.9,2749.4,8.11167086]
[1739790597873,0.72733,2749.7,2749.4,0.5439]
[1739790598079,3.33333,2749.7,2749.4,0.5439]
[1739790598281,2.606,2749.7,2749.4,0.5439]
[1739790598670,0.7273,2749.8,2749.4,0.5439]
[1739790598877,2.607,2749.9,2749.6,3.2078]
[1739790599975,2.607,2749.9,2749.4,0.5439]
[1739790600185,6.50161552,2749.9,2749.4,0.5439]
[1739790600477,2.607,2749.9,2749.4,0.5439]
[1739790600678,0.00545068,2750.2,2749.6,3.2078]
[1739790600883,2.607,2750.0,2749.8,0.72727]
[1739790601073,2.61245068,2750.2,2750.0,0.72722]
[1739790601279,2.61245068,2750.2,2750.0,0.5534]
[1739790601474,0.00545068,2750.2,2750.1,0.72721]
[1739790601680,2.607,2751.0,2750.5,0.72709]
[1739790601982,2.607,2751.0,2750.1,7.54116968]
[1739790601983,0.72702,2750.9,2750.2,4.46497]
[1739790602189,2.607,2751.0,2750.2,3.7378]
[1739790602486,0.72707,2750.7,2750.2,4.46498]
[1739790602684,0.72707,2750.7,2750.2,3.7378]
[1739790602880,0.00545068,2750.7,2750.3,0.72714]
[1739790603086,0.00545068,2750.7,2750.2,3.74325068]
[1739790603284,3.89461552,2750.5,2750.2,0.00545068]
[1739790603485,3.89461552,2750.5,2749.9,3.2078]
[1739790603486,0.72723,2750.0,2749.9,3.2078]
[1739790603783,0.72723,2750.0,2749.4,0.5672]
[1739790603784,0.72728,2749.9,2749.4,0.5672]
[1739790603980,0.72726,2749.9,2749.4,0.5672]
[1739790604281,6.50161552,2750.0,2749.4,0.5672]
[1739790604581,0.72726,2749.9,2749.4,0.5672]
[1739790604784,2.607,2750.2,2749.6,3.2078]
[1739790604977,3.33419,2750.2,2749.6,3.2078]
[1739790605177,2.607,2750.2,2749.6,3.2078]
[1739790605585,3.33419,2750.2,2749.6,3.2078]
[1739790605787,2.607,2750.2,2749.6,3.2078]
[1739790605980,6.50161552,2750.2,2749.6,3.2078]
[1739790606679,0.72728,2749.9,2749.6,3.2078]
[1739790607074,0.7273,2749.8,2749.6,3.2078]
[1739790607278,6.50161552,2750.2,2749.6,3.2078]
[1739790607485,2.607,2750.2,2749.7,0.72729]
[1739790607781,0.73251068,2750.7,2750.1,0.72719]
[1739790607990,2.607,2750.6,2750.2,0.5488]
[1739790608881,0.72712,2750.5,2750.2,0.5488]
[1739790609179,0.72721,2750.1,2750.0,0.533]
[1739790609384,0.7272,2750.2,2750.0,0.533]
[1739790609587,2.607,2750.6,2750.0,0.533]
[1739790610179,0.72717,2750.3,2750.0,3.7408]
[1739790610580,2.607,2750.6,2750.0,3.7408]
[1739790610882,0.7272,2750.2,2750.0,3.7408]
[1739790611484,2.607,2750.6,2750.0,3.7408]
[1739790611690,0.7272,2750.2,2750.0,3.7408]
[1739790611888,2.607,2750.6,2750.0,3.7408]
[1739790612088,0.72721,2750.1,2750.0,3.7408]
[1739790612390,3.33419,2750.2,2750.0,3.7408]
[1739790612590,2.607,2750.2,2750.0,3.7408]
[1739790612793,3.3342,2750.2,2750.0,3.7408]
[1739790613491,2.607,2750.2,2750.0,3.7408]
[1739790613791,2.608,2750.5,2750.0,3.7408]
[1739790613991,3.21325068,2750.7,2750.0,4.46801]
[1739790614193,0.72719,2750.2,2750.0,3.7408]
[1739790614398,3.89461552,2750.4,2750.0,0.533]
[1739790614692,3.89461552,2750.4,2749.7,3.7814]
[1739790614693,0.72719,2750.2,2749.8,0.72728]
[1739790614892,4.42575,2750.6,2749.7,3.7814]
[1739790615189,0.72726,2750.0,2749.8,7.80023964]
[1739790615491,3.89461552,2750.4,2749.8,7.80023964]
[1739790615888,5.71244552,2750.4,2749.8,7.80023964]
[1739790616189,0.5318,2750.3,2749.8,7.80023964]
[1739790616695,0.72726,2749.9,2749.8,7.80023964]
[1739790616890,0.5318,2750.3,2749.7,3.7814]
[1739790617098,0.5318,2750.3,2749.9,0.72725]
[1739790617394,0.72718,2750.2,2749.9,0.72725]
[1739790618092,1.25897,2750.3,2749.9,0.72725]
[1739790618292,0.5318,2750.3,2749.9,0.72725]
[1739790618492,0.5318,2750.3,2749.8,0.72728]
[1739790618691,0.7272,2750.2,2749.9,0.72725]
[1739790619083,0.72719,2750.2,2749.9,0.72725]
[1739790619589,0.5318,2750.3,2749.7,3.7814]
[1739790619590,0.72725,2750.0,2749.7,3.7814]
[1739790619894,0.72727,2749.9,2749.7,3.7814]
[1739790620289,2.608,2750.1,2749.7,3.7814]
[1739790620494,2.608,2750.1,2749.7,4.50869]
[1739790620495,0.72726,2749.9,2749.7,4.50869]
[1739790620695,0.72729,2749.8,2749.7,3.2078]
[1739790621295,11.52847552,2750.1,2749.5,0.5431]
[1739790621492,0.72734,2749.7,2749.5,0.5431]
[1739790621694,0.72734,2749.6,2749.5,0.5431]
[1739790621986,1.81816,2749.9,2749.0,3.2078]
[1739790621987,0.72745,2749.2,2749.0,3.2078]
[1739790622990,2.607,2749.3,2749.0,3.2078]
[1739790623488,0.5306,2749.6,2749.0,3.2078]
[1739790623689,2.608,2749.5,2749.0,3.2078]
[1739790623896,2.608,2749.5,2749.2,0.72744]
[1739790624294,3.33537,2749.5,2749.1,1.27175]
[1739790624590,0.5306,2749.6,2749.1,0.5443]
[1739790624591,3.1386,2749.6,2749.1,0.5443]
[1739790624789,3.2078,2749.8,2749.1,6.48195]
[1739790624989,2.608,2750.0,2749.5,3.2078]
[1739790625193,2.608,2750.0,2749.7,0.72729]
[1739790625398,2.608,2750.0,2749.6,0.5501]
[1739790625591,3.33524,2750.0,2749.7,0.5472]
[1739790625900,2.608,2750.0,2749.8,0.72728]
[1739790626194,3.33523,2750.0,2749.7,0.5472]
[1739790626494,2.608,2750.0,2749.7,0.5472]
[1739790626682,0.72729,2749.8,2749.7,0.5472]
[1739790626888,0.72731,2749.7,2749.6,0.5501]
[1739790627085,0.72734,2749.6,2749.5,3.2078]
[1739790627802,0.72734,2749.6,2749.2,3.2078]
[1739790627803,2.608,2749.6,2749.2,3.2078]
[1739790628003,0.72742,2749.3,2749.2,3.2078]
[1739790628199,0.5595,2749.5,2749.2,3.2078]
[1739790628695,0.7273,2749.8,2749.4,0.72738]
[1739790628891,5.8158,2750.1,2749.3,1.1226]
[1739790629197,0.72737,2749.5,2749.3,1.1226]
[1739790629398,3.89461552,2749.9,2749.3,1.1226]
[1739790629595,3.89461552,2749.9,2749.2,3.2078]
[1739790629596,0.72739,2749.4,2749.2,3.2078]
[1739790630202,0.5706,2749.5,2749.2,3.2078]
[1739790630389,0.72742,2749.3,2749.2,3.2078]
[1739790634101,3.89461552,2749.3,2748.6,1.1226]
[1739790634402,3.89461552,2749.3,2748.2,3.2078]
[1739790634403,0.72768,2748.3,2748.2,3.2078]
[1739790634596,0.72768,2748.3,2747.8,0.5431]
[1739790634797,3.2078,2748.4,2747.8,0.5431]
[1739790634997,0.72776,2748.0,2747.8,8.01526044]
[1739790635202,0.72771,2748.2,2747.8,0.5431]
[1739790635494,3.1754,2748.6,2747.8,0.5431]
[1739790635692,0.72775,2748.1,2747.8,0.5431]
[1739790636199,0.72781,2747.9,2747.6,3.2078]
[1739790636499,2.608,2748.2,2747.6,3.2078]
[1739790636700,3.2078,2748.1,2747.6,3.2078]
[1739790637096,7.63991552,2748.1,2747.5,0.5714]
[1739790637297,3.89461552,2747.8,2746.8,3.2078]
[1739790637603,3.2078,2747.6,2747.0,7.70446023]
[1739790637900,0.72796,2747.3,2746.8,4.362]
[1739790638298,3.21325068,2747.6,2746.8,4.362]
[1739790638704,3.21325068,2747.6,2747.1,3.2078]
[1739790638705,5.82125068,2747.6,2747.1,3.2078]
[1739790638906,6.54912068,2747.6,2747.1,3.93579]
[1739790639105,5.82125068,2747.6,2747.1,3.93579]
[1739790639603,5.82125068,2747.6,2747.2,0.72796]
[1739790639604,2.61345068,2747.6,2747.2,0.72796]
[1739790640304,2.61345068,2747.6,2747.1,3.2078]
[1739790640606,2.61345068,2747.6,2747.2,0.72796]
[1739790640909,2.61345068,2747.6,2747.1,3.2078]
[1739790641210,0.00545068,2747.6,2747.5,0.7279]
[1739790641712,4.76590718,2748.6,2748.1,0.72773]
[1739790641713,0.5824,2748.5,2748.1,0.72773]
[1739790642005,3.1914,2748.5,2747.9,3.2078]
[1739790642214,4.51773,2748.9,2748.2,7.5068081]
[1739790642507,2.609,2748.8,2748.3,1.30716]
[1739790642695,2.609,2748.8,2748.4,0.72765]
[1739790643016,3.34201068,2748.8,2748.4,0.72765]
[1739790643199,2.61445068,2748.8,2748.4,0.72765]
[1739790643401,3.34201068,2748.8,2748.4,0.72765]
[1739790643598,0.72758,2748.7,2748.3,0.58495068]
[1739790643798,2.61445068,2748.8,2748.3,0.58495068]
[1739790643994,0.72761,2748.6,2748.3,0.58495068]
[1739790644409,2.61445068,2748.8,2748.3,0.58495068]
[1739790644707,0.7276,2748.6,2748.3,1.31263068]
[1739790645010,2.61445068,2748.8,2748.3,0.58495068]
[1739790645211,0.72762,2748.6,2748.3,0.58495068]
[1739790645702,2.61445068,2748.8,2748.3,0.58495068]
[1739790646002,0.00545068,2748.8,2748.4,7.75907491]
[1739790646202,0.00545068,2748.8,2748.7,0.72758]
[1739790646606,0.00545068,2748.8,2748.7,7.58839135]
[1739790646607,0.72755,2748.8,2748.7,7.58839135]
[1739790646812,9.71141552,2749.1,2748.4,0.5623]
[1739790647111,3.1512,2749.0,2748.3,1.31262068]
[1739790647302,3.1512,2749.0,2748.3,0.58495068]
[1739790647502,0.72762,2748.6,2748.3,0.58495068]
[1739790647805,0.72763,2748.5,2748.3,0.58495068]
[1739790648010,3.89461552,2748.8,2748.3,0.58495068]
[1739790648211,0.72762,2748.6,2748.3,0.58495068]
[1739790648509,3.89461552,2748.8,2748.3,0.58495068]
[1739790648703,0.72765,2748.5,2748.3,0.00545068]
[1739790648903,3.8911041,2748.8,2748.3,0.00545068]
[1739790649103,0.72762,2748.6,2748.3,0.00545068]
[1739790649510,3.8911041,2748.8,2748.3,0.00545068]
[1739790649901,0.72766,2748.4,2748.3,0.00545068]
[1739790652109,3.2078,2748.8,2748.3,0.00545068]
[1739790652306,2.609,2748.5,2748.3,0.73312068]
[1739790652709,2.609,2748.5,2748.3,0.00545068]
[1739790652907,2.609,2748.5,2748.4,0.72766]
[1739790653113,5.8168,2748.8,2748.3,0.00545068]
[1739790653406,0.00545068,2748.9,2748.7,0.72756]
[1739790653606,0.00545068,2748.9,2748.3,0.00545068]
[1739790653607,3.2078,2748.8,2748.3,0.00545068]
[1739790653813,4.62227552,2748.4,2748.3,0.00545068]
[1739790654013,0.72775,2748.1,2747.8,3.2078]
[1739790654518,0.5641,2748.3,2748.0,0.72775]
[1739790654720,3.2078,2748.5,2747.9,7.80214267]
[1739790655017,2.609,2748.4,2748.2,0.7277]
[1739790655215,2.609,2748.4,2747.9,8.92409335]
[1739790655408,2.609,2748.4,2748.1,0.72773]
[1739790655713,2.609,2748.4,2748.2,0.72771]
[1739790655906,2.609,2748.4,2747.9,8.92409335]
[1739790656105,2.609,2748.4,2748.3,0.72768]
[1739790656312,3.2078,2748.5,2747.9,8.92409335]
[1739790656512,6.54445,2748.5,2748.2,0.7277]
[1739790656911,5.8168,2748.5,2747.9,8.92409335]
[1739790657113,5.8168,2748.5,2748.3,0.72766]
[1739790657416,5.8168,2748.5,2748.4,0.72766]
[1739790657613,5.8168,2748.5,2748.1,3.2078]
[1739790657922,3.2078,2748.5,2748.4,0.72766]
[1739790658314,3.2078,2748.5,2748.3,0.72767]
[1739790658810,3.2078,2748.5,2748.1,3.2078]
[1739790659723,3.2078,2748.5,2748.3,0.72767]
[1739790659908,3.2078,2748.5,2748.1,3.2078]
[1739790660108,0.72767,2748.4,2748.2,0.7277]
[1739790660307,3.93545,2748.5,2748.2,0.7277]
[1739790660514,0.72767,2748.4,2748.1,3.2078]
[1739790660712,3.93544,2748.5,2748.1,3.2078]
[1739790661014,3.2078,2748.5,2748.4,0.72766]
[1739790661215,3.33658,2748.7,2748.1,3.2078]
[1739790661411,2.609,2748.7,2748.2,0.72771]
[1739790661711,2.609,2748.7,2748.1,3.2078]
[1739790661920,0.72767,2748.4,2748.1,3.93552]
[1739790662115,0.72767,2748.4,2748.1,0.72772]
[1739790662516,0.72772,2748.2,2747.9,1.84972068]
[1739790662816,0.72772,2748.2,2747.9,1.12195068]
[1739790663212,0.72772,2748.2,2748.0,0.72776]
[1739790663409,2.609,2748.3,2747.9,1.12195068]
[1739790663811,0.72776,2748.0,2747.9,0.00545068]
[1739790664519,0.5311,2748.2,2747.9,0.00545068]
[1739790664721,0.5311,2748.2,2747.9,0.73323068]
[1739790665220,1.25881,2748.2,2747.9,0.73323068]
[1739790665424,0.5311,2748.2,2747.9,0.73323068]
[1739790665822,1.25882,2748.2,2747.9,0.73323068]
[1739790666021,0.5311,2748.2,2747.9,0.73323068]
[1739790666208,0.5311,2748.2,2748.0,0.72776]
[1739790666413,2.609,2748.1,2748.0,0.72776]
[1739790666920,2.609,2748.1,2747.9,0.73322068]
[1739790667314,2.609,2748.1,2748.0,0.72776]
[1739790667822,2.609,2748.1,2747.9,0.00545068]
[1739790668025,2.609,2748.1,2748.0,0.72776]
[1739790668424,3.2078,2748.5,2748.4,0.72766]
[1739790668623,0.55525068,2748.9,2748.8,0.72755]
[1739790668922,0.00545068,2748.9,2748.8,0.72755]
[1739790669117,0.00545068,2748.9,2748.8,1.80415]
[1739790669927,1.1175,2749.6,2748.8,14.61654514]
[1739790669928,2.609,2749.5,2748.8,14.61654514]
[1739790670120,2.609,2749.5,2749.0,3.2078]
[1739790670320,2.609,2749.5,2749.1,0.72746]
[1739790670622,3.33638,2749.5,2749.1,7.53994514]
[1739790670817,3.33638,2749.5,2749.1,0.72746]
[1739790671118,2.609,2749.5,2749.3,0.7274]
[1739790671323,3.73195068,2749.6,2749.4,0.72737]